fUST/lending_fUST_20251115
["ID","MTS","AMOUNT","RATE_DAILY","PERIOD"]
[393991511,1763165440099,-1540.93857377,0.00033167,2]
[393991512,1763165440110,-6983.51234562,0.00033167,2]
[393991689,1763165447455,-193953.09308042,0.00033167,2]
[393991690,1763165447465,-357.45,0.000332,14]
[393991691,1763165447475,-157.41334826,0.000332,117]
[393991692,1763165447484,-500.0,0.00033862,5]
[393991693,1763165447493,-413.0,0.00034026,2]
[393991694,1763165447502,-150.0,0.000341,18]
[393991695,1763165447512,-1440.184,0.00034267,2]
[393991696,1763165447521,-987.0,0.00034267,2]
[393991697,1763165447530,-629.0,0.00034267,2]
[393991698,1763165447540,-1000.0,0.00034409,5]
[393991699,1763165447548,-1454.8359807,0.00034717,2]
[393991700,1763165447558,-1094.87371572,0.00034957,5]
[393991701,1763165447567,-153.0,0.00035,120]
[393991702,1763165447576,-413.0,0.00037026,2]
[393991703,1763165447585,-987.0,0.00037267,2]
[393991704,1763165447594,-629.0,0.00037267,2]
[393991705,1763165447604,-1341.84913912,0.00038128,2]
[393991706,1763165447613,-565.16798928,0.00038128,2]
[393991707,1763165447622,-1000.0,0.00038756,10]
[393991708,1763165447632,-1000.0,0.00038893,10]
[393991709,1763165447642,-200.0,0.00038961,10]
[393991710,1763165447652,-357.45,0.00039,14]
[393991711,1763165447663,-1000.0,0.0003903,10]
[393991712,1763165447672,-1000.0,0.00039167,10]
[393991713,1763165447683,-153.0,0.000392,120]
[393991714,1763165447692,-1000.0,0.00039304,10]
[393991715,1763165447701,-1000.0,0.00039441,10]
[393991716,1763165447710,-2000.0,0.00039498,21]
[393991717,1763165447719,-343.22026976,0.000396,120]
[393991718,1763165447729,-240.04574504,0.000396,120]
[393991719,1763165447738,-415.863593,0.00039654,2]
[393991720,1763165447747,-413.0,0.00040026,2]
[393991721,1763165447756,-987.0,0.00040267,2]
[393991722,1763165447765,-629.0,0.00040267,2]
[393991723,1763165447775,-343.22026976,0.000408,120]
[393991724,1763165447784,-157.41334824,0.00041013,120]
[393991725,1763165447793,-999.0,0.00041095,120]
[393991726,1763165447803,-250.0,0.00041754,2]
[393991727,1763165447812,-250.0,0.00041754,2]
[393991728,1763165447820,-250.0,0.00041754,2]
[393991729,1763165447830,-250.0,0.00041754,2]
[393991730,1763165447839,-250.0,0.00041754,2]
[393991731,1763165447848,-284.01275842,0.00041754,2]
[393991732,1763165447857,-250.0,0.00041754,2]
[393991733,1763165447866,-151.0,0.00041754,2]
[393991734,1763165447875,-250.0,0.00041754,2]
[393991735,1763165447884,-151.0,0.00041754,2]
[393991736,1763165447894,-250.0,0.00041754,2]
[393991737,1763165447903,-151.0,0.00041754,2]
[393991738,1763165447914,-250.0,0.00041754,2]
[393991739,1763165447924,-151.0,0.00041754,2]
[393991740,1763165447933,-296.26560318,0.00041754,2]
[393991741,1763165447943,-151.0,0.00041754,2]
[393991742,1763165447952,-151.0,0.00041754,2]
[393991743,1763165447961,-151.0,0.00041754,2]
[393991744,1763165447971,-151.0,0.00041754,2]
[393991745,1763165447980,-151.0,0.00041754,2]
[393991746,1763165447990,-533.88981491,0.00041754,2]
[393991747,1763165447999,-2141.34044155,0.00041754,2]
[393991748,1763165448010,-151.0,0.00041754,2]
[393991749,1763165448022,-151.0,0.00041754,2]
[393991750,1763165448031,-151.0,0.00041754,2]
[393991751,1763165448041,-151.0,0.00041754,2]
[393991752,1763165448050,-151.0,0.00041754,2]
[393991753,1763165448061,-151.0,0.00041754,2]
[393991754,1763165448070,-151.0,0.00041754,2]
[393991755,1763165448079,-151.0,0.00041754,2]
[393991756,1763165448090,-151.0,0.00041754,2]
[393991757,1763165448099,-151.0,0.00041754,2]
[393991758,1763165448108,-151.0,0.00041754,2]
[393991759,1763165448117,-151.0,0.00041754,2]
[393991760,1763165448126,-151.0,0.00041754,2]
[393991761,1763165448135,-151.0,0.00041754,2]
[393991762,1763165448143,-151.0,0.00041754,2]
[393991763,1763165448152,-151.0,0.00041754,2]
[393991764,1763165448163,-251.47694848,0.00041754,2]
[393991765,1763165448172,-151.0,0.00041754,2]
[393991766,1763165448181,-250.0,0.00041754,2]
[393991767,1763165448190,-151.0,0.00041754,2]
[393991768,1763165448199,-250.0,0.00041754,2]
[393991769,1763165448208,-250.0,0.00041754,2]
[393991770,1763165448217,-250.0,0.00041754,2]
[393991771,1763165448226,-250.0,0.00041754,2]
[393991772,1763165448235,-250.0,0.00041754,2]
[393991773,1763165448244,-250.0,0.00041754,2]
[393991774,1763165448253,-203.0,0.00041754,2]
[393991775,1763165448262,-343.22026976,0.00042,120]
[393991776,1763165448271,-553.64373807,0.00042302,2]
[393991777,1763165448280,-574.12855637,0.0004285,2]
[393991778,1763165448290,-236.7969069,0.00043051,4]
[393991779,1763165448299,-343.22026976,0.000433,120]
[393991780,1763165448309,-200.0,0.0004332,120]
[393991781,1763165448318,-595.37131296,0.00043398,2]
[393991782,1763165448327,-153.0,0.000434,120]
[393991783,1763165448337,-999.0,0.00043835,120]
[393991784,1763165448346,-617.40005154,0.00043946,2]
[393991785,1763165448355,-523.4,0.00044109,14]
[393991786,1763165448364,-357.45,0.000444,14]
[393991787,1763165448374,-640.24385345,0.00044494,2]
[393991788,1763165448383,-343.22026976,0.000446,120]
[393991789,1763165448392,-160.0,0.00044895,3]
[393991790,1763165448402,-663.93287602,0.00045042,2]
[393991791,1763165448413,-523.4,0.00045479,15]
[393991792,1763165448422,-160.0,0.00045575,4]
[393991793,1763165448432,-372.17118294,0.0004559,2]
[393991794,1763165448442,-593.4565077,0.00045933,30]
[393991795,1763165448451,-415.863593,0.00046143,2]
[393991796,1763165448461,-160.0,0.00046255,5]
[393991797,1763165448470,-200.0,0.00046336,120]
[393991798,1763165448480,-999.0,0.00046575,120]
[393991799,1763165448489,-156.221987,0.00046811,2]
[393991800,1763165448499,-523.4,0.00046849,16]
[393991801,1763165448508,-179.71246006,0.00046865,35]
[393991802,1763165448518,-160.0,0.00046936,6]
[393991803,1763165448527,-153.0,0.000476,120]
[393991804,1763165448537,-160.0,0.00047616,7]
[393991805,1763165448547,-158.46263135,0.00047945,30]
[393991806,1763165448556,-158.46263135,0.00048192,30]
[393991807,1763165448565,-523.4,0.00048219,17]
[393991808,1763165448575,-160.0,0.00048296,8]
[393991809,1763165448584,-158.46263135,0.00048411,30]
[393991810,1763165448594,-158.46263135,0.0004863,30]
[393991811,1763165448604,-158.46263135,0.00048877,30]
[393991812,1763165448614,-160.0,0.00048977,9]
[393991813,1763165448623,-158.46263135,0.00049096,30]
[393991814,1763165448633,-999.0,0.00049315,120]
[393991815,1763165448643,-158.46263135,0.00049342,30]
[393991816,1763165448652,-357.45,0.000495,14]
[393991817,1763165448663,-158.46263135,0.00049562,30]
[393991818,1763165448673,-523.4,0.00049589,18]
[393991819,1763165448682,-160.0,0.00049657,10]
[393991820,1763165448693,-156.221987,0.00049768,10]
[393991821,1763165448702,-158.46263135,0.00049808,30]
[393991822,1763165448713,-158.46263135,0.00050027,30]
[393991823,1763165448723,-156.221987,0.00050195,7]
[393991824,1763165448732,-158.46263135,0.00050274,30]
[393991825,1763165448741,-160.0,0.00050337,11]
[393991826,1763165448751,-595.07381212,0.00050493,4]
[393991827,1763165448761,-158.46263135,0.00050493,30]
[393991828,1763165448770,-200.0,0.00050674,120]
[393991829,1763165448779,-523.4,0.00050958,19]
[393991830,1763165448788,-3000.0,0.00051,85]
[393991831,1763165448798,-3000.0,0.0005101,85]
[393991832,1763165448807,-160.0,0.00051017,12]
[393991833,1763165448817,-3000.0,0.0005102,85]
[393991834,1763165448826,-3000.0,0.0005103,85]
[393991835,1763165448837,-3000.0,0.0005104,85]
[393991836,1763165448846,-3000.0,0.0005105,85]
[393991837,1763165448856,-3000.0,0.0005106,85]
[393991838,1763165448865,-3000.0,0.0005107,85]
[393991839,1763165448875,-3006.12511,0.0005108,85]
[393991840,1763165448885,-946.24043999,0.00051387,4]
[393991841,1763165448894,-498.17895996,0.00051387,4]
[393991842,1763165448905,-160.0,0.00051698,13]
[393991843,1763165448918,-153.0,0.000518,120]
[393991844,1763165448934,-999.0,0.00052054,120]
[393991845,1763165448944,-523.4,0.00052328,20]
[393991846,1763165448953,-160.0,0.00052378,14]
[393991847,1763165448962,-415.863593,0.00052632,2]
[393991848,1763165448972,-160.0,0.00053058,15]
[393991849,1763165448988,-156.221987,0.00053246,90]
[393991850,1763165448998,-500.0,0.00053356,60]
[393991851,1763165449011,-156.221987,0.00053471,30]
[393991852,1763165449020,-523.4,0.00053698,21]
[393991853,1763165449030,-160.0,0.00053739,16]
[393991854,1763165449039,-167.66697331,0.00053739,5]
[393991855,1763165449048,-500.0,0.00053904,60]
[393991856,1763165449058,-518.78565752,0.00054,60]
[393991857,1763165449067,-160.785134,0.00054114,2]
[393991858,1763165449076,-156.221987,0.00054114,2]
[393991859,1763165449088,-1000.0,0.00054246,120]
[393991860,1763165449097,-244.2963968,0.00054246,120]
[393991861,1763165449126,-755.7036032,0.00054246,120]
[393991862,1763165449135,-1000.0,0.00054246,120]
[393991863,1763165449145,-1000.0,0.00054246,120]
[393991864,1763165449154,-1000.0,0.00054246,120]
[393991865,1763165449165,-1000.0,0.00054246,120]
[393991866,1763165449175,-1000.0,0.00054246,120]
[393991867,1763165449184,-500.0,0.00054452,60]
[393991868,1763165449194,-200.0,0.00054529,120]
[393991869,1763165449203,-840.46586784,0.00054694,2]
[393992023,1763165713082,5000.0,0.00038935,69]
[393992139,1763166353129,-433.9573748,0.00027176,2]
[393992140,1763166353149,-999.0,0.00027306,2]
[393992141,1763166353171,-300.0,0.00027671,2]
[393992142,1763166353195,-1200.0,0.00027671,2]
[393992143,1763166353216,-5068.33285638,0.00027672,2]
[393992259,1763166632343,-823.096827,0.00024142,2]
[393992261,1763166632354,-913.29051093,0.00024142,2]
[393992295,1763166638091,-500.0,0.00024141,2]
[393992296,1763166638102,-500.0,0.00024141,2]
[393992297,1763166638111,-500.0,0.00024141,2]
[393992298,1763166638120,-500.0,0.00024141,2]
[393992299,1763166638129,-500.0,0.00024141,2]
[393992300,1763166638139,-222.89948426,0.00024141,2]
[393992301,1763166638158,-277.10051574,0.00024141,2]
[393992302,1763166638168,-500.0,0.00024141,2]
[393992303,1763166638177,-500.0,0.00024141,2]
[393992304,1763166638187,-500.0,0.00024141,2]
[393992305,1763166638196,-500.0,0.00024141,2]
[393992306,1763166638205,-500.0,0.00024141,2]
[393992307,1763166638215,-500.0,0.00024141,2]
[393992308,1763166638224,-297.27011557,0.00024141,2]
[393992309,1763166638234,-500.0,0.00024141,2]
[393992310,1763166638243,-500.0,0.00024141,2]
[393992311,1763166638253,-500.0,0.00024141,2]
[393992312,1763166638262,-500.0,0.00024141,2]
[393992313,1763166638272,-432.8170174,0.00024141,2]
[393992314,1763166638281,-500.0,0.00024141,2]
[393992315,1763166638290,-426.00922772,0.00024141,2]
[393992316,1763166638299,-500.0,0.00024141,2]
[393992317,1763166638309,-500.0,0.00024141,2]
[393992318,1763166638318,-500.0,0.00024141,2]
[393992319,1763166638328,-238.98433171,0.00024141,2]
[393992320,1763166638337,-500.0,0.00024141,2]
[393992321,1763166638346,-500.0,0.00024141,2]
[393992322,1763166638356,-500.0,0.00024141,2]
[393992323,1763166638365,-469.42683865,0.00024141,2]
[393992324,1763166638375,-587.66406183,0.00024141,2]
[393992325,1763166638384,-500.0,0.00024141,2]
[393992326,1763166638393,-500.0,0.00024141,2]
[393992327,1763166638403,-500.0,0.00024141,2]
[393992328,1763166638412,-500.0,0.00024141,2]
[393992329,1763166638423,-500.0,0.00024141,2]
[393992330,1763166638434,-500.0,0.00024141,2]
[393992331,1763166638444,-33806.41726232,0.00024142,2]
[393992332,1763166638454,-177.051583,0.000249,2]
[393992333,1763166638465,-1650.40834083,0.00026,30]
[393992334,1763166638474,-538.45210476,0.00026282,2]
[393992335,1763166638483,-538.45203575,0.00026282,2]
[393992336,1763166638494,-538.45203568,0.00026282,2]
[393992337,1763166638504,-538.45203568,0.00026282,2]
[393992338,1763166638513,-768.87651224,0.00026282,2]
[393992339,1763166638523,-7469.15376962,0.00027672,2]
[393992340,1763166638533,-151.0,0.000285,14]
[393992341,1763166638542,-437.96,0.00028609,3]
[393992342,1763166638552,-500.0,0.00028618,2]
[393992343,1763166638562,-500.0,0.00028618,2]
[393992344,1763166638571,-178.72909697,0.00028618,2]
[393992345,1763166638580,-465.47580986,0.00028618,2]
[393992346,1763166638590,-158.4094189,0.00028618,2]
[393992347,1763166638600,-500.0,0.00028618,2]
[393992348,1763166638609,-500.0,0.00028618,2]
[393992349,1763166638619,-890000.0,0.00028619,2]
[393992350,1763166638628,-5425.31651551,0.00028718,2]
[393992351,1763166638638,-28026.5904589,0.00028718,2]
[393992352,1763166638648,-500.0,0.00028728,2]
[393992353,1763166638657,-500.0,0.00028728,2]
[393992354,1763166638667,-500.0,0.00028728,2]
[393992355,1763166638678,-500.0,0.00028728,2]
[393992356,1763166638688,-500.0,0.00028728,2]
[393992357,1763166638698,-500.0,0.00028728,2]
[393992358,1763166638708,-500.0,0.00028728,2]
[393992359,1763166638718,-158817.345934,0.00028728,2]
[393992360,1763166638728,-214.47,0.000288,2]
[393992361,1763166638738,-11905.22816655,0.0002899,2]
[393992362,1763166638748,-768.87651224,0.00029675,2]
[393992363,1763166638757,-2000.0,0.0003,7]
[393992364,1763166638767,-538.45210476,0.00031371,2]
[393992365,1763166638777,-538.45203575,0.00031371,2]
[393992366,1763166638787,-538.45203568,0.00031371,2]
[393992367,1763166638797,-538.45203568,0.00031371,2]
[393992368,1763166638807,-177.051583,0.00032094,2]
[393992369,1763166638817,-177.051583,0.00032223,10]
[393992370,1763166638827,-250.22433908,0.00032877,7]
[393992371,1763166638837,-768.87651224,0.00033068,2]
[393992372,1763166638847,-191.24671159,0.00033156,7]
[393992373,1763166638856,-254.77975247,0.00033156,7]
[393992374,1763166638866,-294.60138134,0.00033156,7]
[393992375,1763166638875,-151.0,0.00033156,7]
[393992376,1763166638885,-151.0,0.00033156,7]
[393992377,1763166638895,-151.0,0.00033156,7]
[393992378,1763166638906,-151.0,0.00033156,7]
[393992379,1763166638916,-151.66255476,0.00033156,7]
[393992380,1763166638926,-195.53526998,0.00033156,7]
[393992381,1763166638936,-500.0,0.00033156,7]
[393992382,1763166638947,-219.12455109,0.00033156,7]
[393992383,1763166638957,-151.0,0.00033156,7]
[393992384,1763166638966,-500.0,0.00033156,7]
[393992385,1763166638975,-151.0,0.00033156,7]
[393992386,1763166638985,-198.48816271,0.00033156,7]
[393992387,1763166638994,-151.0,0.00033156,7]
[393992388,1763166639003,-151.15914308,0.00033156,7]
[393992389,1763166639012,-151.0,0.00033156,7]
[393992390,1763166639022,-151.0,0.00033156,2]
[393992391,1763166639031,-151.0,0.00033156,7]
[393992392,1763166639049,-151.0,0.00033156,7]
[393992393,1763166639061,-151.0,0.00033156,7]
[393992394,1763166639071,-151.0,0.00033156,7]
[393992395,1763166639081,-500.0,0.00033156,7]
[393992396,1763166639091,-152.0084879,0.00033156,7]
[393992397,1763166639101,-151.99056464,0.00033156,2]
[393992398,1763166639111,-157.41334824,0.000332,117]
[393992399,1763166639120,-151.0,0.00033293,7]
[393992400,1763166639130,-151.0,0.00033293,7]
[393992401,1763166639140,-500.0,0.00033293,7]
[393992402,1763166639149,-151.0,0.00033293,7]
[393992403,1763166639159,-500.0,0.00033293,7]
[393992404,1763166639169,-225.48262416,0.00033293,7]
[393992405,1763166639180,-151.0,0.00033293,7]
[393992406,1763166639191,-151.0,0.00033293,7]
[393992407,1763166639201,-165.25786638,0.00033293,7]
[393992408,1763166639211,-151.0,0.00033293,7]
[393992409,1763166639222,-151.0,0.00033293,7]
[393992410,1763166639231,-500.0,0.00033293,7]
[393992411,1763166639241,-230.90105677,0.0003343,7]
[393992412,1763166639251,-203.42845839,0.0003343,7]
[393992413,1763166639260,-500.0,0.0003343,7]
[393992414,1763166639270,-202.3787376,0.0003343,7]
[393992415,1763166639280,-500.0,0.0003343,7]
[393992416,1763166639290,-212.81961972,0.0003343,7]
[393992417,1763166639299,-247.1134968,0.0003343,7]
[393992418,1763166639310,-151.0,0.0003343,7]
[393992419,1763166639320,-198.0,0.0003343,7]
[393992420,1763166639330,-500.0,0.0003343,7]
[393992421,1763166639340,-500.0,0.00033567,7]
[393992422,1763166639350,-500.0,0.00033567,7]
[393992423,1763166639360,-500.0,0.00033704,7]
[393992424,1763166639369,-500.0,0.00033704,7]
[393992425,1763166639379,-500.0,0.00033841,7]
[393992426,1763166639388,-500.0,0.00033978,7]
[393992427,1763166639400,-255.75409175,0.00034015,2]
[393992428,1763166639410,-171.71594749,0.00034115,7]
[393992429,1763166639422,-164.0,0.00035,120]
[393992430,1763166639433,-209.0,0.00035,120]
[393992431,1763166639443,-538.45210476,0.00036461,2]
[393992432,1763166639453,-538.45203575,0.00036461,2]
[393992433,1763166639465,-538.45203568,0.00036461,2]
[393992434,1763166639476,-538.45203568,0.00036461,2]
[393992435,1763166639486,-768.87651224,0.00036461,2]
[393992436,1763166639497,-177.051583,0.00038071,10]
[393992437,1763166639506,-152.49811372,0.00038739,42]
[393992438,1763166639516,-173.0,0.000389,90]
[393992439,1763166639526,-270.7,0.0003893,10]
[393992440,1763166639535,-150.0,0.00038933,10]
[393992441,1763166639545,-177.051583,0.00039287,2]
[393992442,1763166639555,-768.87651224,0.00039854,2]
[393992443,1763166639564,-200.0,0.0004,2]
[393992444,1763166639574,-164.0,0.000402,120]
[393992445,1763166639584,-999.0,0.00041095,120]
[393992446,1763166639594,-538.45210476,0.0004155,2]
[393992447,1763166639604,-538.45203575,0.0004155,2]
[393992448,1763166639614,-538.45203568,0.0004155,2]
[393992449,1763166639624,-538.45203568,0.0004155,2]
[393992450,1763166639634,-350.0,0.00041564,10]
[393992451,1763166639644,-1000.0,0.00041715,14]
[393992452,1763166639654,-762.0,0.00041715,14]
[393992453,1763166639664,-334.99157457,0.00041754,2]
[393992454,1763166639674,-164.80968897,0.00041754,2]
[393992455,1763166639685,-296.65744015,0.00041754,2]
[393992456,1763166639695,-527.39100471,0.00041754,2]
[393992457,1763166639706,-400.39671335,0.00041754,2]
[393992458,1763166639717,-457.59624382,0.00041754,2]
[393992459,1763166639727,-1000.0,0.00041852,14]
[393992460,1763166639736,-1000.0,0.00041989,14]
[393992461,1763166639746,-214.47,0.00042,14]
[393992462,1763166639755,-179.71246006,0.00042105,26]
[393992463,1763166639765,-177.051583,0.0004322,30]
[393992464,1763166639775,-768.87651224,0.00043246,2]
[393992465,1763166639785,-1000.0,0.000438,90]
[393992466,1763166639795,-635.08550234,0.00043835,120]
[393992467,1763166639804,-177.051583,0.00043869,7]
[393992468,1763166639814,-177.051583,0.0004392,10]
[393992470,1763166639823,-348.94,0.00044109,14]
[393992472,1763166639832,-348.94,0.00045479,15]
[393992473,1763166639842,-164.0,0.000455,120]
[393992474,1763166639851,-177.051583,0.00046481,2]
[393992475,1763166639861,-538.99055687,0.00046639,2]
[393992478,1763166639871,-538.99048778,0.00046639,2]
[393992479,1763166639880,-538.99048771,0.00046639,2]
[393992482,1763166639889,-538.99048771,0.00046639,2]
[393992484,1763166639898,-769.64538876,0.00046639,2]
[393992486,1763166639908,-191.2434578,0.0004672,30]
[393992488,1763166639917,-790.4219608,0.0004672,30]
[393992490,1763166639926,-600.735643,0.0004672,30]
[393992492,1763166639936,-164.2237678,0.0004672,30]
[393992494,1763166639946,-593.4565077,0.0004672,30]
[393992496,1763166639955,-191.2434578,0.0004672,30]
[393992498,1763166639964,-164.2237678,0.0004672,30]
[393992500,1763166639973,-593.4565077,0.0004672,30]
[393992502,1763166639982,-191.2434578,0.0004672,30]
[393992504,1763166639991,-164.2237678,0.0004672,30]
[393992506,1763166640000,-593.4565077,0.0004672,30]
[393992508,1763166640017,-191.2434578,0.0004672,30]
[393992510,1763166640026,-164.2237678,0.0004672,30]
[393992512,1763166640036,-593.4565077,0.0004672,30]
[393992514,1763166640046,-191.2434578,0.0004672,30]
[393992516,1763166640055,-164.2237678,0.0004672,30]
[393992518,1763166640064,-593.4565077,0.0004672,30]
[393992520,1763166640074,-191.2434578,0.0004672,30]
[393992522,1763166640094,-164.2237678,0.0004672,30]
[393992525,1763166640103,-593.4565077,0.0004672,30]
[393992527,1763166640112,-191.2434578,0.0004672,30]
[393992528,1763166640121,-164.2237678,0.0004672,30]
[393992530,1763166640130,-593.4565077,0.0004672,30]
[393992533,1763166640140,-164.2237678,0.0004672,30]
[393992535,1763166640149,-191.2434578,0.0004672,30]
[393992537,1763166640159,-593.4565077,0.0004672,30]
[393992539,1763166640168,-177.051583,0.00046815,30]
[393992541,1763166640178,-348.94,0.00046849,16]
[393992543,1763166640187,-348.94,0.00048219,17]
[393992545,1763166640196,-173.0,0.00049,120]
[393992547,1763166640205,-313.85626185,0.00049,15]
[393992549,1763166640214,-348.94,0.00049589,18]
[393992551,1763166640224,-177.051583,0.00049768,10]
[393992553,1763166640233,-22303.00783911,0.0005,120]
[393992554,1763166640242,-2000.0,0.0005,21]
[393992556,1763166640252,-177.051583,0.00050154,7]
[393992559,1763166640261,-177.051583,0.00050411,30]
[393992561,1763166640271,-500.0,0.00050482,18]
[393992563,1763166640280,-164.0,0.000507,120]
[393992565,1763166640289,-348.94,0.00050958,19]
[393992567,1763166640299,-699.5416955,0.00051387,4]
[393992569,1763166640308,-159.4425347,0.00051387,4]
[393992571,1763166640317,-7692.1071672,0.00051886,2]
[393992573,1763166640326,-255.3594584,0.00052,120]
[393992575,1763166640335,-348.94,0.00052328,20]
[393992577,1763166640345,-600.0,0.00052799,2]
[393992579,1763166640354,-173.0,0.00053,120]
[393992581,1763166640363,-173.0,0.00053,21]
[393992583,1763166640373,-159.0,0.00053,120]
[393992585,1763166640382,-600.0,0.00053349,2]
[393992587,1763166640392,-500.0,0.00053356,60]
[393992589,1763166640401,-876.64348737,0.000535,120]
[393992591,1763166640410,-156.221988,0.00053674,2]
[393992593,1763166640420,-177.051583,0.00053674,2]
[393992595,1763166640432,-348.94,0.00053698,21]
[393992597,1763166640442,-500.0,0.00053709,120]
[393992599,1763166640451,-904.40512671,0.00053899,2]
[393992600,1763166640460,-593.4565077,0.00053918,30]
[393992602,1763166640470,-593.4565077,0.00053918,30]
[393992604,1763166640480,-1145.27019109,0.00053989,120]
[393992607,1763166640489,-173.0,0.00054,60]
[393992609,1763166640500,-500.0,0.00054,120]
[393992611,1763166640510,-500.0,0.00054,120]
[393992612,1763166640519,-500.0,0.00054,120]
[393992614,1763166640528,-500.0,0.00054,120]
[393992616,1763166640538,-500.0,0.00054,120]
[393992618,1763166640547,-500.0,0.00054,120]
[393992619,1763166640556,-500.0,0.00054,120]
[393992620,1763166640566,-322.59,0.00054,120]
[393992621,1763166640575,-177.051583,0.00054006,30]
[393992622,1763166640584,-519.64701204,0.00054217,120]
[393992623,1763166640593,-593.4565077,0.00054219,30]
[393992624,1763166640603,-593.4565077,0.00054411,30]
[393992625,1763166640612,-593.4565077,0.00054411,30]
[393992626,1763166640622,-500.0,0.00054452,60]
[393992627,1763166640632,-250.0,0.00054528,120]
[393992628,1763166640641,-151.0,0.00054528,120]
[393992629,1763166640651,-250.0,0.00054528,120]
[393992630,1763166640660,-156.587,0.00054528,120]
[393992631,1763166640670,-250.0,0.00054528,120]
[393992632,1763166640681,-162.380719,0.00054528,120]
[393992633,1763166640690,-250.0,0.00054528,120]
[393992634,1763166640700,-168.3888056,0.00054528,120]
[393992635,1763166640709,-153.84054432,0.00054528,120]
[393992636,1763166640719,-250.0,0.00054528,120]
[393992637,1763166640728,-250.0,0.00054528,120]
[393992639,1763166640738,-325.4610475,0.00054528,120]
[393992641,1763166640748,-250.0,0.00054528,120]
[393992643,1763166640757,-250.0,0.00054528,120]
[393992645,1763166640767,-250.0,0.00054528,120]
[393992647,1763166640776,-250.0,0.00054528,120]
[393992649,1763166640786,-349.34326665,0.00054528,120]
[393992651,1763166640795,-151.0,0.00054528,120]
[393992654,1763166640806,-151.0,0.00054528,120]
[393992656,1763166640815,-151.0,0.00054528,120]
[393992658,1763166640824,-151.0,0.00054528,120]
[393992660,1763166640833,-151.0,0.00054528,120]
[393992662,1763166640843,-151.0,0.00054528,120]
[393992664,1763166640853,-151.0,0.00054528,120]
[393992666,1763166640862,-151.0,0.00054528,120]
[393992668,1763166640871,-151.0,0.00054528,120]
[393992670,1763166640879,-151.0,0.00054528,120]
[393992672,1763166640889,-414.0,0.00054528,120]
[393992674,1763166640898,-151.0,0.00054528,120]
[393992676,1763166640908,-151.0,0.00054528,120]
[393992678,1763166640918,-429.318,0.00054528,120]
[393992680,1763166640927,-151.0,0.00054528,120]
[393992682,1763166640937,-445.202766,0.00054528,120]
[393992684,1763166640946,-163.47713805,0.00054528,120]
[393992686,1763166640955,-151.0,0.00054528,120]
[393992688,1763166640964,-461.67526834,0.00054528,120]
[393992690,1763166640974,-478.75725327,0.00054528,120]
[393992692,1763166640982,-151.0,0.00054528,120]
[393992694,1763166640992,-496.47127164,0.00054528,120]
[393992696,1763166641001,-151.0,0.00054528,120]
[393992698,1763166641010,-514.84070869,0.00054528,120]
[393992699,1763166641019,-151.0,0.00054528,120]
[393992701,1763166641029,-151.0,0.00054528,120]
[393992704,1763166641038,-151.0,0.00054528,120]
[393992706,1763166641047,-151.0,0.00054528,120]
[393992708,1763166641057,-151.0,0.00054528,120]
[393992710,1763166641067,-151.0,0.00054528,120]
[393992712,1763166641076,-250.0,0.00054528,120]
[393992714,1763166641085,-151.0,0.00054528,120]
[393992716,1763166641094,-250.0,0.00054528,120]
[393992718,1763166641104,-151.0,0.00054528,120]